bitfinex/quotes_SOLUSD_20240827
["timestamp","ask_amount","ask_price","bid_price","bid_amount"]
[1724775984968,0.12549,155.17,155.11,1.28915097]
[1724775985646,0.12549,155.17,155.1,20.0]
[1724775985976,0.25098,155.17,155.1,23.36733598]
[1724775986141,0.25098,155.17,155.1,20.0]
[1724775988670,32.21859015,155.17,155.05,6.6023]
[1724775988867,15.1587,155.15,155.05,6.6023]
[1724775989169,6.4467,155.12,155.06,6.71925178]
[1724775989358,6.69708,155.14,155.06,6.71925178]
[1724775989559,6.4464,155.13,155.06,6.71925178]
[1724775989741,0.12549,155.12,155.06,6.71925178]
[1724775990065,6.4463,155.13,155.06,6.71925178]
[1724775990240,6.447,155.11,155.06,6.71925178]
[1724775990444,0.12549,155.1,155.06,6.71925178]
[1724775991158,0.12549,155.11,155.06,6.71925178]
[1724775992238,53.16701015,155.1,155.06,6.71925178]
[1724775992442,6.4487,155.07,154.97,31.96761015]
[1724775992667,6.70008,155.06,154.98,10.09851123]
[1724775992864,6.57459,155.06,154.98,3.37276312]
[1724775993075,0.12549,155.05,154.98,3.37276312]
[1724775993259,0.12549,155.05,154.98,6.71895423]
[1724775993460,0.12549,155.05,154.99,31.96761015]
[1724775993774,0.12549,155.06,155.01,31.96761015]
[1724775993945,0.12549,155.06,155.02,1.28993998]
[1724775994762,0.12549,155.06,155.0,16.3461]
[1724775994966,45.25098,155.06,155.0,16.3461]
[1724775995165,51.70028,155.06,154.98,45.28886438]
[1724775995370,51.70028,155.06,154.98,6.71895423]
[1724775995571,51.70028,155.06,154.96,48.31371015]
[1724775995870,51.70028,155.06,154.97,20.0]
[1724775997282,6.4496,155.05,154.97,20.0]
[1724775997578,51.70098,155.04,154.95,31.96761015]
[1724775997744,0.12549,155.03,154.95,31.96761015]
[1724776001278,6.57579,155.03,154.95,31.96761015]
[1724776001512,45.12549,155.02,154.95,31.96761015]
[1724776001663,0.12549,155.01,154.95,31.96761015]
[1724776002891,0.12549,155.01,154.94,13.31970577]
[1724776002892,45.0,155.02,154.97,31.96761015]
[1724776003095,45.0,155.03,154.97,31.96761015]
[1724776003278,0.12549,155.02,154.97,31.96761015]
[1724776003677,6.4494,155.06,154.98,1.29027888]
[1724776003882,6.4496,155.05,154.99,1.29019648]
[1724776004895,306.27491105,155.09,154.99,1.29019648]
[1724776004896,0.12549,155.04,154.99,31.96761015]
[1724776005072,45.25098,155.05,154.99,31.96761015]
[1724776005902,51.70048,155.05,154.97,31.96761015]
[1724776006191,6.45,155.04,154.97,31.96761015]
[1724776006491,45.25098,155.03,154.97,31.96761015]
[1724776008569,0.12549,155.03,154.97,31.96761015]
[1724776012601,0.25098,155.03,154.97,31.96761015]
[1724776013185,0.12549,155.03,154.97,31.96761015]
[1724776016299,45.0,155.04,154.97,31.96761015]
[1724776016508,1.12318736,155.07,155.03,31.96761015]
[1724776016678,21.1994,155.1,155.03,31.96761015]
[1724776016875,21.1994,155.1,154.99,16.6623]
[1724776016876,6.4479,155.09,154.99,16.6623]
[1724776017078,6.4482,155.08,155.01,31.96761015]
[1724776017486,6.4487,155.07,155.01,31.96761015]
[1724776017695,16.1196,155.09,154.99,48.62991015]
[1724776017895,6.4494,155.06,154.99,48.62991015]
[1724776018278,0.25098,155.05,154.99,48.62991015]
[1724776018802,45.25098,155.05,154.99,48.62991015]
[1724776019038,6.4488,155.07,155.01,31.96761015]
[1724776019213,45.25098,155.06,155.01,31.96761015]
[1724776020798,0.25098,155.06,155.01,31.96761015]
[1724776021695,6.70008,155.06,155.01,31.96761015]
[1724776021898,45.0,155.05,155.01,31.96761015]
[1724776022312,45.0,155.05,154.99,48.62991015]
[1724776022610,45.0,155.05,155.0,1.29008169]
[1724776022786,45.25098,155.06,155.01,31.96761015]
[1724776028221,51.70008,155.06,154.99,31.96761015]
[1724776028718,6.4497,155.05,154.97,31.96761015]
[1724776028892,51.70098,155.04,154.97,31.96761015]
[1724776029216,45.0,155.03,154.97,31.96761015]
[1724776029522,45.12549,155.03,154.97,31.96761015]
[1724776032517,384.9,155.08,155.02,31.96761015]
[1724776032718,384.9,155.08,155.05,31.96761015]
[1724776032923,6.4475,155.1,155.05,31.96761015]
[1724776033099,6.4479,155.09,155.05,31.96761015]
[1724776033425,1.1228774,155.12,155.05,31.96761015]
[1724776033618,6.4483,155.08,155.03,31.96761015]
[1724776033999,0.25098,155.07,155.03,31.96761015]
[1724776034605,0.25098,155.07,155.01,31.96761015]
[1724776034901,6.4492,155.06,154.98,16.3005]
[1724776035116,0.25098,155.05,154.99,51.96761015]
[1724776035793,45.25098,155.05,154.99,51.96761015]
[1724776035995,45.25098,155.05,155.01,12.80379282]
[1724776037114,0.25098,155.05,155.01,12.80379282]
[1724776037428,7.57151113,155.08,155.03,12.80379282]
[1724776037723,45.25098,155.07,155.03,12.80379282]
[1724776039325,51.69988,155.07,155.03,12.80379282]
[1724776039904,6.4491,155.06,155.0,1.29224927]
[1724776040103,51.70058,155.05,155.02,12.80379282]
[1724776040302,45.12549,155.04,155.0,12.80379282]
[1724776040796,0.12549,155.03,154.94,15.9634]
[1724776041004,6.4511,155.02,154.96,14.0962809]
[1724776041203,51.70208,155.01,154.96,14.0962809]
[1724776041419,0.12549,155.0,154.95,12.80379282]
[1724776041630,6.57709,155.0,154.95,1.29268744]
[1724776041813,45.12549,154.99,154.94,12.80379282]
[1724776042128,45.12549,154.99,154.93,33.32951571]
[1724776042306,45.12549,154.99,154.94,1.29268744]
[1724776042708,0.12549,155.0,154.95,32.03682827]
[1724776042915,384.9,155.03,154.97,32.03682827]
[1724776043134,45.12549,155.02,154.98,1.29038331]
[1724776043439,1.12293273,155.1,155.0,32.03682827]
[1724776043609,22.1958,155.13,155.08,32.03682827]
[1724776043812,6.4462,155.13,155.08,32.03682827]
[1724776044899,6.4462,155.13,155.05,1.28955479]
[1724776044900,10.685,155.08,154.98,1.28952469]
[1724776045107,6.4532,154.96,154.95,1.61597389]
[1724776045418,6.4534,154.96,154.88,32.03682827]
[1724776045599,32.03682827,154.99,154.86,32.03682827]
[1724776045804,45.25098,154.98,154.88,32.03682827]
[1724776046005,45.25098,154.98,154.9,32.03682827]
[1724776046006,51.70338,154.98,154.9,32.03682827]
[1724776046222,6.4529,154.97,154.9,32.03682827]
[1724776046415,45.12549,154.96,154.9,32.03682827]
[1724776046822,0.12549,154.98,154.84,0.8375389]
[1724776047010,51.70348,154.98,154.88,32.03682827]
[1724776047209,45.25098,154.98,154.9,32.03682827]
[1724776047410,0.25098,154.98,154.9,32.03682827]
[1724776048426,0.25098,154.98,154.89,20.0]
[1724776048629,0.25098,154.98,154.89,26.72324334]
[1724776048840,6.70348,154.98,154.89,26.72324334]
[1724776049016,51.4529,154.97,154.89,26.72324334]
[1724776049221,51.4529,154.97,154.89,20.0]
[1724776049222,45.25098,154.96,154.89,20.0]
[1724776049529,45.25098,154.96,154.87,20.0]
[1724776050113,51.70428,154.96,154.87,20.0]
[1724776050328,45.25098,154.96,154.87,20.0]
[1724776050535,0.25098,154.96,154.87,20.0]
[1724776052527,6.70428,154.96,154.87,20.0]
[1724776052726,6.4542,154.94,154.87,20.0]
[1724776052915,51.70548,154.93,154.84,0.8375389]
[1724776053233,45.0,154.92,154.84,0.8375389]
[1724776053736,0.12549,154.91,154.84,0.8375389]
[1724776054439,0.12549,154.91,154.84,20.8375389]
[1724776054641,0.12549,154.91,154.84,0.8375389]
[1724776055332,0.25098,154.91,154.84,0.8375389]
[1724776056330,0.25098,154.91,154.84,20.8375389]
[1724776058405,0.25098,154.91,154.84,0.8375389]
[1724776058610,32.03682827,154.9,154.84,0.8375389]
[1724776058829,45.25098,154.89,154.84,0.8375389]
[1724776059038,384.9,154.88,154.84,0.8375389]
[1724776059245,77.16231827,154.87,154.84,0.8375389]
[1724776059423,0.12549,154.86,154.84,0.8375389]
[1724776060331,6.4578,154.85,154.84,0.8375389]
[1724776060542,51.70878,154.85,154.84,0.8375389]
[1724776061419,45.25098,154.85,154.84,0.8375389]
[1724776061818,0.25098,154.85,154.84,0.8375389]
[1724776062139,0.12549,154.85,154.84,0.8375389]
[1724776062941,391.357,154.88,154.84,0.8375389]
[1724776063137,45.25098,154.87,154.84,0.8375389]
[1724776063642,51.70828,154.87,154.84,0.8375389]
[1724776065343,1.12461066,154.89,154.84,0.8375389]
[1724776065517,7.58081066,154.89,154.84,0.8375389]
[1724776065725,1.12461066,154.89,154.84,0.8375389]
[1724776067039,46.12461066,154.89,154.84,0.8375389]
[1724776067243,45.0,154.89,154.84,0.8375389]
[1724776067548,1.12427373,154.92,154.84,32.87436717]
[1724776067718,1.12427373,154.92,154.86,32.03682827]
[1724776067918,401.0322,154.97,154.84,16.8460389]
[1724776067919,401.0322,154.97,154.88,32.03682827]
[1724776068118,17.25616101,154.97,154.86,32.03682827]
[1724776068920,16.1348,154.95,154.84,48.88286717]
[1724776069120,32.03682827,154.94,154.84,16.8460389]
[1724776069928,6.4561,154.9,154.84,16.8460389]
[1724776070119,45.25098,154.89,154.84,16.8460389]
[1724776071120,51.70708,154.89,154.84,16.8460389]
[1724776071652,6.4566,154.88,154.84,0.8375389]
[1724776071947,45.25098,154.87,154.84,0.8375389]
[1724776072117,6.58279,154.87,154.84,0.8375389]
[1724776072323,51.58289,154.86,154.84,0.8375389]
[1724776072545,0.12549,154.85,154.84,0.8375389]
[1724776075750,45.12549,154.86,154.84,0.8375389]
[1724776075948,0.12549,154.86,154.84,0.8375389]
[1724776080556,51.58249,154.87,154.84,0.8375389]
[1724776080557,41.70798,154.87,154.84,0.8375389]
[1724776082250,6.4578,154.85,154.84,0.8375389]
[1724776082652,51.70878,154.85,154.84,0.8375389]
[1724776085767,384.9,154.89,154.84,0.8375389]
[1724776085947,6.4566,154.88,154.84,0.8375389]
[1724776087137,0.12549,154.87,154.84,0.8375389]
[1724776092039,6.4566,154.88,154.84,0.8375389]
[1724776092249,1.12443587,154.9,154.85,16.0141]
[1724776092545,391.3545,154.93,154.86,32.03682827]
[1724776093261,384.9,154.93,154.88,32.03682827]
[1724776094257,0.12549,154.92,154.88,32.03682827]
[1724776094843,384.9,154.93,154.88,32.03682827]
[1724776095942,6.4525,154.98,154.9,32.03682827]
[1724776096251,1.12370467,154.99,154.92,47.46522827]
[1724776097060,391.3519,155.0,154.92,47.46522827]
[1724776097365,384.9,155.0,154.96,32.03682827]
[1724776097549,6.2208,155.06,154.96,32.03682827]
[1724776097738,7.34408421,155.06,154.96,32.03682827]
[1724776097942,1.12328421,155.06,154.98,32.03682827]
[1724776098476,391.349,155.07,154.98,32.03682827]
[1724776100775,0.25098,155.06,154.98,32.03682827]
[1724776101477,6.70008,155.06,154.98,32.03682827]
[1724776102373,0.25098,155.06,154.98,32.03682827]
[1724776102571,7.57172298,155.08,155.01,15.6274]
[1724776102890,45.25098,155.07,155.01,15.6274]
[1724776104575,6.4496,155.05,155.01,15.6274]
[1724776104763,6.4492,155.06,155.01,15.6274]
[1724776104970,0.12549,155.05,155.01,15.6274]
[1724776105279,0.25098,155.05,155.01,15.6274]
[1724776105459,0.12549,155.05,155.01,15.6274]
[1724776105658,6.449,155.07,155.01,15.6274]
[1724776105861,6.449,155.07,155.01,21.9302]
[1724776106767,6.4491,155.06,155.01,21.9302]
[1724776106967,1.12312298,155.08,155.01,21.9302]
[1724776106968,6.57499,155.05,155.01,21.9302]
[1724776107181,6.4514,155.01,154.97,16.489]
[1724776107356,45.12549,155.0,154.97,16.489]
[1724776107565,0.12549,155.0,154.97,16.489]
[1724776109187,6.4539,154.95,154.91,15.4431]
[1724776109484,32.03682827,154.99,154.91,15.4431]
[1724776109680,45.25098,154.98,154.91,15.4431]
[1724776111266,0.12549,154.98,154.91,15.4431]
[1724776113285,6.4528,154.97,154.91,15.4431]
[1724776113485,51.70348,154.98,154.91,15.4431]
[1724776113705,6.57799,154.98,154.91,15.4431]
[1724776114387,0.12549,154.98,154.91,15.4431]
[1724776114691,6.4512,155.01,154.92,53.32751208]
[1724776114990,6.4512,155.01,154.93,1.29050688]
[1724776115197,384.9,155.04,154.94,32.03682827]
[1724776115573,6.4506,155.03,154.94,32.03682827]
[1724776115793,6.4506,155.03,154.95,6.5544]
[1724776116478,0.12549,155.02,154.95,6.5544]
[1724776116675,385.02549,155.04,154.96,33.32719645]
[1724776116676,391.35,155.04,154.96,33.32719645]
[1724776116873,384.9,155.04,154.96,1.29036818]
[1724776117073,32.03682827,155.03,154.93,16.0546]
[1724776117274,6.4518,155.0,154.93,48.09142827]
[1724776117598,6.4508,155.02,154.95,32.03682827]
[1724776117890,384.9,155.04,154.98,22.609]
[1724776118105,391.35,155.04,154.98,22.609]
[1724776118272,6.4509,155.02,154.98,22.609]
[1724776119491,32.03682827,155.03,154.98,16.0546]
[1724776119691,6.4533,154.96,154.91,16.0546]
[1724776120071,0.12549,154.97,154.91,16.0546]
[1724776120072,6.57919,154.95,154.91,16.0546]
[1724776120376,45.12549,154.94,154.91,16.0546]
[1724776120575,0.12549,154.93,154.91,16.0546]
[1724776120779,6.58029,154.93,154.91,16.0546]
[1724776120969,6.4549,154.92,154.91,16.0546]
[1724776121290,6.4556,154.91,154.86,16.0546]
[1724776122088,51.58049,154.92,154.86,16.0546]
[1724776122301,6.57999,154.94,154.86,16.0546]
[1724776123073,0.12549,154.94,154.86,48.09142827]
[1724776123274,45.25098,154.94,154.86,48.09142827]
[1724776123570,6.4533,154.96,154.86,48.09142827]
[1724776123769,45.25098,154.95,154.86,48.09142827]
[1724776124578,51.70468,154.95,154.86,48.09142827]
[1724776125500,32.03682827,155.0,154.86,16.0546]
[1724776125799,54.53622827,155.02,154.88,32.03682827]
[1724776126786,6.4524,154.98,154.88,32.03682827]
[1724776126993,45.25098,154.97,154.88,32.03682827]
[1724776127598,0.25098,154.97,154.88,32.03682827]
[1724776127790,0.12549,154.97,154.88,32.03682827]
[1724776128207,0.12549,154.97,154.89,20.0]
[1724776129185,32.03682827,155.04,154.91,6.4597]
[1724776129506,416.93682827,155.04,154.91,6.4597]
[1724776129879,6.4513,155.01,154.92,32.03682827]
[1724776130075,6.4508,155.02,154.92,32.03682827]
[1724776130397,6.4508,155.02,154.94,32.03682827]
[1724776130579,384.9,155.04,154.94,32.03682827]
[1724776130905,6.4508,155.02,154.94,32.03682827]
[1724776131637,6.4503,155.03,154.94,32.03682827]
[1724776132208,6.4508,155.02,154.94,32.03682827]
[1724776133182,6.4518,155.0,154.93,16.3865]
[1724776133496,0.12549,154.99,154.93,16.3865]
[1724776134106,6.4506,155.03,154.94,32.03682827]
[1724776134312,51.70178,155.02,154.94,32.03682827]
[1724776134599,6.4512,155.01,154.94,32.03682827]
[1724776134804,45.25098,155.0,154.94,32.03682827]
[1724776135408,6.4508,155.02,154.94,32.03682827]
[1724776137117,6.4519,155.0,154.93,16.3865]
[1724776137288,45.25098,154.99,154.93,16.3865]
[1724776137488,51.70298,154.99,154.93,16.3865]
[1724776138306,45.25098,154.99,154.93,16.3865]
[1724776138508,51.70328,154.99,154.93,16.3865]
[1724776139010,45.25098,154.99,154.93,16.3865]
[1724776139316,45.0,154.98,154.93,16.3865]
[1724776139511,0.25098,154.97,154.93,16.3865]
[1724776139998,32.28780827,154.97,154.93,16.3865]
[1724776140202,6.4541,154.94,154.88,15.5252]
[1724776140710,45.0,154.96,154.88,15.5252]
[1724776140909,0.25098,154.95,154.88,15.5252]
[1724776142013,0.12549,154.95,154.88,15.5252]
[1724776142217,6.4525,154.98,154.89,32.03682827]
[1724776142393,0.12549,154.97,154.89,32.03682827]
[1724776143111,0.12549,154.97,154.9,20.0]
[1724776143315,0.12549,154.98,154.9,20.0]
[1724776143818,45.25098,154.99,154.9,20.0]
[1724776143986,51.70298,154.99,154.9,20.0]
[1724776146893,45.25098,154.99,154.9,20.0]
[1724776147099,32.28780827,154.99,154.9,20.0]
[1724776147288,6.4532,154.97,154.89,20.0]
[1724776147624,45.12549,154.96,154.89,20.0]
[1724776147912,0.12549,154.99,154.89,52.03682827]
[1724776148119,6.4524,154.98,154.89,52.03682827]
[1724776148293,0.12549,154.97,154.89,52.03682827]
[1724776150116,45.12549,154.97,154.88,15.5252]
[1724776150304,6.4545,154.93,154.88,15.5252]
[1724776150533,45.25098,154.92,154.88,15.5252]
[1724776151135,6.4561,154.89,154.88,15.5252]
[1724776151427,6.58159,154.89,154.84,17.0284389]
[1724776153245,0.12549,154.89,154.84,17.0284389]
[1724776154044,45.25098,154.9,154.84,17.0284389]
[1724776154242,0.12549,154.9,154.84,17.0284389]
[1724776155536,6.58119,154.9,154.84,17.0284389]
[1724776156552,1.12410806,154.91,154.84,17.0284389]
[1724776156756,46.12410806,154.91,154.84,17.0284389]
[1724776156936,52.57950806,154.91,154.84,17.0284389]
[1724776158633,1.12410806,154.91,154.85,32.03682827]
[1724776159552,1.12410806,154.91,154.84,17.0284389]
[1724776161530,6.4553,154.91,154.84,17.0284389]
[1724776162554,51.70678,154.9,154.84,17.0284389]
[1724776162755,6.70678,154.9,154.84,17.0284389]
[1724776164060,6.58129,154.9,154.84,17.0284389]
[1724776164557,6.4562,154.89,154.84,17.0284389]
[1724776164754,51.70758,154.88,154.84,17.0284389]
[1724776164939,51.58209,154.88,154.84,17.0284389]
[1724776166046,45.12549,154.88,154.84,17.0284389]
[1724776166367,45.12549,154.88,154.84,0.8375389]
[1724776166661,0.12549,154.87,154.84,0.8375389]
[1724776167756,6.4575,154.86,154.84,0.8375389]
[1724776168261,6.58259,154.87,154.84,0.8375389]
[1724776168567,0.12549,154.86,154.84,0.8375389]
[1724776168742,0.12549,154.87,154.84,0.8375389]
[1724776169068,6.58249,154.87,154.84,0.8375389]
[1724776169250,45.12549,154.86,154.84,0.8375389]
[1724776171254,384.9,154.9,154.85,32.03682827]
[1724776171568,384.9,154.9,154.86,35.9059]
[1724776171945,1.12386858,154.98,154.87,38.38422827]
[1724776172255,6.4531,154.97,154.88,20.0]
[1724776172756,6.4524,154.98,154.89,32.03682827]
[1724776172943,6.4524,154.98,154.88,20.0]
[1724776172944,7.57548869,155.0,154.91,32.03682827]
[1724776173139,7.57548869,155.0,154.88,20.0]
[1724776173140,2.01090281,155.05,154.95,32.03682827]
[1724776173344,12.5517,155.06,154.97,32.03682827]
[1724776173940,6.4492,155.06,154.97,32.03682827]
[1724776175359,6.4508,155.02,154.94,15.545]
[1724776175538,45.25098,155.01,154.94,15.545]
[1724776175739,32.03682827,155.08,154.97,32.03682827]
[1724776175940,32.03682827,155.08,154.99,32.03682827]
[1724776175941,6.4485,155.08,154.99,32.03682827]
[1724776176144,1.12311355,155.07,155.0,1.29022132]
[1724776177051,1.12311355,155.07,154.99,1.29016963]
[1724776177770,6.0964,155.1,155.01,40.01170915]
[1724776177945,6.4473,155.11,155.02,1.28992241]
[1724776178257,6.4473,155.11,155.01,40.01170915]
[1724776179151,1.12283867,155.12,155.03,15.5768]
[1724776179343,6.4463,155.13,155.03,15.5768]
[1724776179546,1.12269221,155.12,155.03,15.5768]
[1724776180457,0.12549,155.11,155.03,15.5768]
[1724776180659,0.25098,155.11,155.03,15.5768]
[1724776186965,40.26268915,155.11,155.03,15.5768]
[1724776187152,6.4483,155.08,155.03,15.5768]
[1724776187350,0.12549,155.07,155.03,15.5768]
[1724776187551,51.69968,155.07,155.03,15.5768]
[1724776187768,45.0,155.06,155.03,15.5768]
[1724776188695,51.4491,155.06,155.03,15.5768]
[1724776188979,45.0,155.06,155.03,15.5768]
[1724776190588,0.25098,155.07,155.03,15.5768]
[1724776190886,51.69918,155.08,155.03,15.5768]
[1724776192375,0.12549,155.08,155.04,1.28991801]
[1724776192978,391.3475,155.1,155.04,1.28991801]
[1724776193284,384.9,155.1,155.05,1.28976417]
[1724776193865,384.9,155.1,155.03,15.5768]
[1724776194878,1.12268359,155.15,155.03,15.5768]
[1724776194879,384.9,155.11,155.03,15.5768]
[1724776195474,391.3471,155.11,155.03,15.5768]
[1724776195784,45.25098,155.1,155.03,15.5768]
[1724776196075,384.9,155.11,155.04,31.98629835]
[1724776196283,384.9,155.11,155.05,7.65288485]
[1724776198569,384.9,155.11,155.06,31.98629835]
[1724776198763,384.9,155.11,155.07,1.28945376]
[1724776198963,384.9,155.11,155.09,15.4308]
[1724776199198,6.4446,155.17,155.09,15.4308]
[1724776199199,384.9,155.1,155.09,15.4308]
[1724776199758,384.9,155.1,155.05,6.3633]
[1724776199759,384.9,155.1,155.05,23.0835045]
[1724776199964,391.3477,155.1,155.05,21.7941]
[1724776200476,384.9,155.1,155.05,21.7941]
[1724776200994,0.12549,155.09,155.01,22.3924]
[1724776201167,6.451,155.02,154.97,6.2461]
[1724776201367,0.12549,155.01,154.92,6.2461]
[1724776201691,0.12549,155.01,154.93,16.1463]
[1724776201981,8.40493405,155.0,154.85,21.4089]
[1724776202285,38.44039835,154.94,154.85,21.4089]
[1724776202484,6.4557,154.91,154.85,21.4089]
[1724776202703,51.4561,154.9,154.85,21.4089]
[1724776202867,0.12549,154.9,154.85,21.4089]
[1724776204163,45.25098,154.91,154.85,21.4089]
[1724776204778,6.4544,154.94,154.86,1.29133989]
[1724776205088,0.12549,154.93,154.85,21.4089]
[1724776205289,6.4555,154.91,154.85,21.4089]
[1724776205481,45.25098,154.9,154.85,15.0231]
[1724776208387,51.70668,154.9,154.85,15.0231]
[1724776208584,45.25098,154.9,154.85,15.0231]
[1724776208890,6.4569,154.88,154.85,15.0231]
[1724776209085,45.12549,154.87,154.85,15.0231]
[1724776209289,51.58259,154.87,154.84,0.8375389]
[1724776209484,6.4574,154.86,154.84,0.8375389]
[1724776209672,51.58329,154.85,154.84,0.8375389]
[1724776209867,51.70878,154.85,154.84,0.8375389]
[1724776210269,45.25098,154.85,154.84,0.8375389]
[1724776210792,51.70878,154.85,154.84,0.8375389]
[1724776210977,91.81304074,154.85,154.84,0.8375389]
[1724776211872,51.70878,154.85,154.84,0.8375389]
[1724776212778,6.4549,154.92,154.84,0.8375389]
[1724776212981,6.4557,154.91,154.85,15.6354]
[1724776213178,40.10426074,154.91,154.85,15.6354]
[1724776213780,6.4565,154.89,154.85,15.6354]
[1724776214216,40.10426074,154.93,154.85,15.6354]
[1724776214496,6.4546,154.93,154.85,15.6354]
[1724776214794,384.9,154.96,154.86,41.39558476]
[1724776215295,384.9,154.96,154.88,40.10426074]
[1724776215473,384.9,154.96,154.85,61.78816074]
[1724776215799,384.9,154.96,154.86,20.0]
[1724776216293,45.12549,154.95,154.86,20.0]
[1724776216594,0.12549,154.94,154.85,61.78816074]
[1724776216782,0.12549,154.94,154.85,21.6839]
[1724776216783,6.4551,154.92,154.85,21.6839]
[1724776217097,45.12549,154.91,154.85,21.6839]
[1724776217479,0.12549,154.9,154.85,21.6839]
[1724776217991,0.12549,154.91,154.86,1.2914163]
[1724776218203,384.9,154.96,154.86,1.2914163]
[1724776218204,0.25098,154.92,154.86,1.2914163]
[1724776218385,0.25098,154.93,154.86,1.2914163]
[1724776218585,45.25098,154.93,154.86,1.2914163]
[1724776218989,45.12549,154.93,154.86,1.2914163]
[1724776219295,6.4537,154.95,154.85,61.78816074]
[1724776219476,391.3532,154.97,154.87,40.10426074]
[1724776219683,384.9,154.97,154.88,1.29094417]
[1724776219996,397.7943,155.02,154.91,40.10426074]
[1724776220174,7.57409288,155.02,154.92,16.71327598]
[1724776220380,1.12329288,155.02,154.93,41.39483511]
[1724776220786,6.4513,155.01,154.92,15.4227]
[1724776221080,1.12329288,155.02,154.92,15.4227]
[1724776221081,6.4525,154.98,154.92,15.4227]
[1724776221288,6.452,154.99,154.92,15.4227]
[1724776221488,6.4516,155.0,154.92,15.4227]
[1724776221798,1.12329288,155.02,154.92,15.4227]
[1724776221994,1.12329288,155.02,154.94,40.10426074]
[1724776222196,6.4499,155.04,154.95,7.92417518]
[1724776222381,6.4504,155.03,154.96,1.29049758]
[1724776223670,1.12295076,155.04,154.96,41.39475832]
[1724776224101,1.12295076,155.04,154.98,40.10426074]
[1724776224280,1.12295076,155.04,154.99,1.29017437]
[1724776224598,1.12295076,155.04,154.99,1.29021669]
[1724776225396,1.12295076,155.04,155.0,17.04229206]
[1724776225607,384.9,155.08,155.01,40.10426074]
[1724776225784,1.12268481,155.07,155.01,40.10426074]
[1724776225985,384.9,155.08,155.01,40.10426074]
[1724776226709,7.57002768,155.1,155.01,40.10426074]
[1724776226905,6.4479,155.09,155.01,40.10426074]
[1724776227103,6.4475,155.1,155.01,40.10426074]
[1724776227510,6.4483,155.08,155.01,40.10426074]
[1724776227706,1.12248546,155.12,155.01,40.10426074]
[1724776228003,6.4481,155.09,155.0,15.7522]
[1724776228195,51.57379,155.08,155.0,15.7522]
[1724776228389,6.4491,155.06,155.0,15.7522]
[1724776228597,6.57419,155.07,155.0,15.7522]
[1724776228791,0.12549,155.06,155.0,15.7522]
[1724776228989,6.57419,155.07,155.0,15.7522]
[1724776229189,6.4487,155.07,155.0,15.7522]
[1724776229410,0.12549,155.06,155.0,15.7522]
[1724776230805,0.25098,155.07,155.0,15.7522]
[1724776231111,6.4507,155.03,155.0,15.7522]
[1724776231298,0.12549,155.02,155.0,15.7522]
[1724776231696,6.4528,154.97,154.96,15.9401]
[1724776231889,45.25098,154.97,154.91,22.559]
[1724776232091,0.25098,154.96,154.91,22.559]
[1724776232305,45.25098,154.96,154.91,22.559]
[1724776232497,51.70418,154.96,154.91,22.559]
[1724776232811,0.25098,154.96,154.91,22.559]
[1724776232984,51.70398,154.97,154.91,22.559]
[1724776233185,6.4533,154.96,154.91,22.559]
[1724776234792,384.9,154.98,154.92,40.10426074]
[1724776235001,384.9,154.98,154.92,60.10426074]
[1724776236496,6.4508,155.02,154.92,60.10426074]
[1724776236696,0.12549,155.01,154.92,60.10426074]
[1724776237919,6.4508,155.02,154.92,60.10426074]
[1724776238120,6.4508,155.02,154.93,45.0]
[1724776238296,6.57669,155.01,154.92,60.10426074]
[1724776238806,51.4516,155.0,154.92,20.0]
[1724776238996,0.12549,154.99,154.92,20.0]
[1724776239196,6.4516,155.0,154.92,20.0]
[1724776239598,6.57669,155.01,154.92,20.0]
[1724776239915,6.4504,155.03,154.94,40.10426074]
[1724776240221,6.4504,155.03,154.95,1.29033716]
[1724776240222,0.12549,155.02,154.95,1.29033716]
[1724776240385,0.12549,155.02,154.96,1.29032961]
[1724776241305,0.12549,155.02,154.94,40.10426074]
[1724776241501,384.9,155.06,154.96,40.10426074]
[1724776241715,6.4495,155.05,154.97,1.29016889]